[Event "Velammal-AICF Women GM 2019"]
[Site "Chennai"]
[Date "2019.02.02"]
[Round "8"]
[White "Franco Valencia, Angela"]
[Black "Munguntuul, Batkhuyag"]
[Result "0-1"]
[ECO "B47"]
[WhiteElo "2107"]
[BlackElo "2428"]
[Annotator "ChessBase"]
[PlyCount "64"]
[EventDate "2019.01.28"]
[EventType "swiss"]
[EventCountry "IND"]
[SourceTitle "playchess.com"]
[Source "ChessBase"]
[SourceQuality "1"]
[TimeControl "5400+30"]

1. e4 {[%emt 0:02:41]} c5 {[%emt 0:00:11]} 2. Nf3 {[%emt 0:00:09]} e6 {[%emt 0:00:35]} 3. d4 {[%emt 0:00:09]} cxd4 {[%emt 0:00:03]} 4. Nxd4 {[%emt 0:00:08]} Nc6 {[%emt 0:00:03]} 5. Nc3 {[%emt 0:00:48]} Qc7 {[%emt 0:00:05]} 6. Be2 {[%emt 0:00:28]} a6 {[%emt 0:00:12]} 7. O-O {[%emt 0:00:52]} Nf6 {[%emt 0:00:12]} 8. Kh1 {[%emt 0:00:42]} Be7 {[%emt 0:03:49]} 9. f4 {[%emt 0:01:52]} d6 {[%emt 0:00:07]} 10. Bf3 {[%emt 0:00:55]} O-O 11. Nb3 {[%emt 0:02:12]} b5 {[%emt 0:12:30]} 12. a3 {[%emt 0:04:07]} Bb7 {[%emt 0:00:26]} 13. Qe2 {[%emt 0:01:52]} Rab8 {[%emt 0:18:25]} 14. Be3 {[%emt 0:02:03]} b4 {[%emt 0:07:26]} 15. axb4 {[%emt 0:05:04]} Nxb4 {[%emt 0:02:42]} 16. f5 {[%emt 0:04:10]} e5 {[%emt 0:06:45]} 17. Rfd1 {[%emt 0:04:56]} Rfd8 {[%emt 0:05:42]} 18. Qf2 {[%emt 0:01:30]} Rd7 {[%emt 0:01:37]} 19. Bb6 {[%emt 0:01:09]} Qc8 {[%emt 0:01:11]} 20. Ra4 {[%emt 0:04:49]} d5 {[%emt 0:04:41]} 21. Nc5 {[%emt 0:04:56]} Bxc5 {[%emt 0:08:08]} 22. Bxc5 {[%emt 0:01:27]} dxe4 {[%emt 0:00:05]} 23. Be2 {[%emt 0:01:30]} Nbd5 {[%emt 0:03:58]} 24. Nxd5 {[%emt 0:03:12]} Nxd5 {[%emt 0:00:03]} 25. Rc4 {[%emt 0:02:32]} Qd8 {[%emt 0:02:52]} 26. Qg3 {[%emt 0:03:58]} Qf6 {[%emt 0:04:55]} 27. Rxe4 {[%emt 0:04:27]} Nf4 {[%emt 0:00:43]} 28. Rxd7 {[%emt 0:00:44]} Bxe4 {[%emt 0:00:03]} 29. Bc4 {[%emt 0:00:12]} Rd8 {[%emt 0:02:38]} 30. Rxf7 {[%emt 0:04:14]} Rd1+ {[%emt 0:00:10]} 31. Bg1 {[%emt 0:00:04]} Qxf7 {[%emt 0:01:01]} 32. Bxf7+ {[%emt 0:00:21]} Kxf7 {[%emt 0:00:01]} 0-1

[Event "Velammal-AICF Women GM 2019"]
[Site "Chennai"]
[Date "2019.02.02"]
[Round "9"]
[White "Sapale Saloni"]
[Black "Uuriintuya, Uurtsaikh"]
[Result "1/2-1/2"]
[ECO "B35"]
[WhiteElo "2198"]
[BlackElo "2314"]
[Annotator "NA RC"]
[PlyCount "142"]
[EventDate "2019.01.28"]
[EventType "swiss"]
[EventCountry "IND"]
[SourceTitle "playchess.com"]
[Source "ChessBase"]
[SourceQuality "1"]
[TimeControl "5400+30"]

1. e4 {[%emt 0:00:00]} c5 {[%emt 0:00:00]} 2. Nf3 {[%emt 0:00:00]} (2. Nc3 Nc6 3. Nge2 g6 4. d4 cxd4 {½-½ (45) Wieczorek,O (2477)-Lu,S (2635) Aracaju 2018}) 2... Nc6 {[%emt 0:00:15]} 3. d4 {[%emt 0:00:02]} cxd4 {[%emt 0:00:05]} 4. Nxd4 {[%emt 0:00:07]} g6 {[%emt 0:00:03]} 5. Nc3 {[%emt 0:00:10]} Bg7 {[%emt 0:00:04]} 6. Be3 {[%emt 0:00:08]} Nf6 {[%emt 0:00:04]} 7. Bc4 {[%emt 0:00:10]} Qa5 {[%emt 0:00:58]} 8. O-O {[%emt 0:00:56]} O-O {[%emt 0:00:05]} 9. Bb3 {[%emt 0:00:07]} d6 {[%emt 0:00:07]} 10. h3 {[%emt 0:00:13]} Bd7 {[%emt 0:00:12]} 11. Re1 {[%emt 0:00:17]} Rfe8 {[%emt 0:06:23]} 12. Nf3 {[%emt 0:01:24] B35: Sicilian: Accelerated Dragon with 5 Nc3: main line} b5 {[%emt 0:04:02]} (12... Rac8 13. Qd2 a6 14. Rad1 Be6 15. Bxe6 fxe6 16. Ng5 e5 17. Ne6 Bh8 18. a3 Nd8 19. Nxd8 Rexd8 {½-½ (45) Wieczorek,O (2477)-Lu,S (2635) Aracaju 2018}) 13. a3 {[%emt 0:13:34]} Rac8 $146 {[%emt 0:02:12]} ({Predecessor:} 13... a6 14. Bg5 Rad8 15. Nd5 Nxd5 16. exd5 Ne5 17. Nxe5 Bxe5 18. c3 Qc7 19. Qf3 {Gysi,A (2446)-Donnelly,M (2486) ICCF email 2008}) 14. Qe2 {[%emt 0:04:59]} a6 {[%emt 0:01:16]} 15. Ng5 {[%emt 0:03:59]} Rf8 {[%emt 0:03:55]} 16. f4 {[%emt 0:02:01]} Qc7 {[%emt 0:03:24]} 17. Qf2 {[%emt 0:02:36]} Qb7 {[%emt 0:03:12]} 18. Rad1 {[%emt 0:07:23]} a5 {[%emt 0:05:35] [#]} ({Black should try} 18... h6 $14 19. Nf3 Na5) 19. Bc1 {[%emt 0:07:16]} ({White should try} 19. e5 $1 $16 {[%cal Re5f6]} dxe5 20. fxe5 Nxe5 21. Bc5) 19... Ne8 {[%emt 0:21:47] [#]} (19... b4 $16) 20. Nd5 $2 {[%emt 0:02:25]} ({White should play} 20. f5 $1 $18 {[%cal Rf5g6]} Nf6 21. fxg6 hxg6 22. Nd5) 20... h6 {[%emt 0:09:02]} 21. Nf3 {[%emt 0:00:40]} Rd8 $2 {[%emt 0:06:41]} (21... e6 $16 {was called for.}) 22. Nh4 {[%emt 0:04:59]} Kh7 {[%emt 0:03:41]} ({Better is} 22... a4 $14 23. Ba2 Rb8) 23. f5 {[%emt 0:08:28]} e6 {[%emt 0:04:45]} 24. Nb6 {[%emt 0:04:14]} Ne5 {[%emt 0:02:28]} 25. Nxd7 {[%emt 0:03:43]} Qxd7 {[%emt 0:02:32]} 26. Nf3 {[%emt 0:02:57]} Qe7 {[%emt 0:05:51] [#]} 27. Nxe5 {[%emt 0:01:05]} (27. Nd4 $1 $16) 27... Bxe5 {[%emt 0:00:30]} 28. Rf1 {[%emt 0:00:30]} Bg7 $16 {[%emt 0:02:32]} (28... Nf6 $14) 29. c3 {[%emt 0:05:52]} d5 {[%emt 0:00:30]} 30. Bc2 {[%emt 0:00:30]} dxe4 {[%emt 0:00:30]} 31. Rxd8 {[%emt 0:00:30]} Qxd8 {[%emt 0:00:30]} 32. Rd1 {[%emt 0:00:30]} Qf6 {[%emt 0:00:30]} 33. fxg6+ {[%emt 0:00:30]} Qxg6 {[%emt 0:00:30]} 34. Be3 {[%emt 0:00:30]} Be5 {[%emt 0:00:30]} 35. Rd7 {[%emt 0:00:30]} Nf6 {[%emt 0:00:30]} 36. Rb7 {[%emt 0:00:30]} Rb8 {[%emt 0:00:30]} 37. Rxb8 {[%emt 0:00:30]} Bxb8 {[%emt 0:10:56]} 38. Bd4 {[%emt 0:14:24]} e5 {[%emt 0:00:30]} 39. Be3 {[%emt 0:00:18]} Kg7 {[%emt 0:00:52]} 40. Qd2 {[%emt 0:01:41]} Bc7 {[%emt 0:00:20]} 41. Qe2 {[%emt 0:04:17]} Nh5 {[%emt 0:00:49]} 42. Qxb5 {[%emt 0:01:23]} Nf4 {[%emt 0:01:11]} 43. Bxf4 {[%emt 0:03:46]} exf4 {[%emt 0:00:02]} 44. Kf1 {[%emt 0:00:00]} Qe6 {[%emt 0:00:46]} 45. Bb3 {[%emt 0:00:27]} Qg6 {[%emt 0:00:22]} 46. Bc2 {[%emt 0:00:30]} Qe6 {[%emt 0:00:30]} 47. Bb3 {[%emt 0:00:30]} Qd6 {[%emt 0:00:30]} 48. Qc4 {[%emt 0:00:30]} Qe7 {[%emt 0:00:30]} 49. Bc2 {[%emt 0:00:30]} e3 {[%emt 0:00:30]} 50. Qd3 {[%emt 0:00:30]} Qf6 {[%emt 0:00:30]} 51. Qh7+ {[%emt 0:00:30]} Kf8 {[%emt 0:00:30]} 52. Qf5 {[%emt 0:00:30]} Qh4 {[%emt 0:00:30]} 53. Qc8+ {[%emt 0:00:30]} Bd8 {[%emt 0:00:30]} 54. g3 {[%emt 0:00:30]} fxg3 {[%emt 0:00:30]} 55. Qc5+ {[%emt 0:00:30]} Kg7 {[%emt 0:00:30]} 56. Qf5 {[%emt 0:00:30]} Bc7 {[%emt 0:00:30]} 57. Bb3 {[%emt 0:00:00]} Kf8 {[%emt 0:00:00]} 58. Bc2 {[%emt 0:00:04]} Bd8 {[%emt 0:00:00]} 59. Qc5+ {[%emt 0:01:34]} Kg7 {[%emt 0:01:37]} 60. Qf5 {[%emt 0:00:57]} Bc7 {[%emt 0:00:09]} 61. Qg4+ {[%emt 0:01:17]} Qxg4 {[%emt 0:00:30]} 62. hxg4 {[%emt 0:00:04]} Kf6 {[%emt 0:00:16]} 63. Bd1 {[%emt 0:00:54]} Be5 {[%emt 0:01:07]} 64. Kg2 {[%emt 0:00:27]} Kg5 {[%emt 0:00:23]} 65. a4 {[%emt 0:00:05]} Kf4 {[%emt 0:00:12]} 66. Be2 {[%emt 0:00:16]} Ke4 {[%emt 0:00:43]} 67. b4 {[%emt 0:00:20]} axb4 {[%emt 0:00:57]} 68. cxb4 {[%emt 0:00:06]} Kd4 {[%emt 0:00:06]} 69. a5 {[%emt 0:00:39]} f6 {[%emt 0:00:45]} 70. a6 {[%emt 0:00:32]} Bb8 {[%emt 0:00:07]} 71. b5 {[%emt 0:00:27]} Kc5 {[%emt 0:00:20]} 1/2-1/2

[Event "Velammal-AICF Women GM 2019"]
[Site "Chennai"]
[Date "2019.02.02"]
[Round "9"]
[White "Varshini, V."]
[Black "Franco Valencia, Angela"]
[Result "1/2-1/2"]
[ECO "C75"]
[WhiteElo "2171"]
[BlackElo "2107"]
[Annotator "NA RC"]
[PlyCount "53"]
[EventDate "2019.01.28"]
[EventType "swiss"]
[EventCountry "IND"]
[SourceTitle "playchess.com"]
[Source "ChessBase"]
[SourceQuality "1"]
[TimeControl "5400+30"]

{[%evp 22,52,0,25,10,0,0,0,0,-8,0,-16,-4,-23,32767,32767,32767,-18,32767,32767,27,29,29,32767,31,-23,15,0,32767,-25,4,0,36]} 1. e4 {[%emt 0:00:00]} e5 {[%emt 0:01:36]} 2. Nf3 {[%emt 0:00:00]} Nc6 {[%emt 0:00:09]} 3. Bb5 {[%emt 0:00:00]} a6 {[%emt 0:00:04]} 4. Ba4 {[%emt 0:00:00]} d6 {[%emt 0:00:04]} 5. c3 {[%emt 0:01:24]} Bd7 {[%emt 0:00:43]} 6. O-O {[%emt 0:00:32]} g6 {[%emt 0:00:10]} 7. d4 {[%emt 0:00:22]} Bg7 {[%emt 0:00:09]} 8. Be3 {[%emt 0:03:44]} Nf6 {[%emt 0:00:50]} 9. Bc2 {[%emt 0:01:38]} O-O {[%emt 0:02:25]} 10. dxe5 {[%emt 0:05:33]} dxe5 {[%emt 0:01:03]} 11. Qe2 {[%emt 0:00:06]} Qe7 {[%emt 0:01:56]} 12. Nbd2 {[%emt 0:07:14]} Nh5 {[%emt 0:01:20]} 13. Nb3 {[%emt 0:03:16]} b6 {[%emt 0:00:31]} 14. Rad1 {[%emt 0:01:01]} a5 {[%emt 0:03:03]} 15. Nc1 {[%emt 0:04:41]} a4 {[%emt 0:03:37]} 16. a3 {[%emt 0:00:53]} Na5 {[%emt 0:01:03]} 17. Bd3 {[%emt 0:10:56]} Nf4 {[%emt 0:02:17]} 18. Bxf4 {[%emt 0:00:51]} exf4 {[%emt 0:00:03]} 19. h3 {[%emt 0:08:54]} Bc6 {[%emt 0:08:04]} 20. Rfe1 {[%emt 0:02:38]} Qc5 {[%emt 0:03:37]} 21. Na2 {[%emt 0:03:37]} Rfe8 {[%emt 0:02:13]} 22. Nb4 {[%emt 0:01:50]} Bb7 {[%emt 0:00:14]} 23. Nd4 {[%emt 0:07:04]} (23. e5 $14) 23... Qg5 {[%emt 0:03:53]} 24. Nf3 {[%emt 0:05:32]} Qc5 {[%emt 0:01:41]} 25. Nd4 $11 {[%emt 0:04:04]} Qg5 {[%emt 0:02:50]} 26. Nf3 {[%emt 0:04:34]} Qc5 {[%emt 0:04:02]} 27. Nd4 1/2-1/2

[Event "Velammal-AICF Women GM 2019"]
[Site "Chennai"]
[Date "2019.02.02"]
[Round "9"]
[White "Chandreyee, Hajra"]
[Black "Osmak, Iulija"]
[Result "0-1"]
[ECO "C47"]
[WhiteElo "1925"]
[BlackElo "2394"]
[Annotator "NA RC"]
[PlyCount "116"]
[EventDate "2019.01.28"]
[EventType "swiss"]
[EventCountry "IND"]
[SourceTitle "playchess.com"]
[Source "ChessBase"]
[SourceQuality "1"]
[TimeControl "5400+30"]

1. e4 {[%emt 0:00:25]} e5 {[%emt 0:01:51]} 2. Nf3 {[%emt 0:00:06]} Nc6 {[%emt 0:00:05]} 3. Nc3 {[%emt 0:01:49]} Nf6 {[%emt 0:00:05]} 4. d4 {[%emt 0:00:15]} exd4 {[%emt 0:00:10]} 5. Nxd4 {[%emt 0:00:06]} Bb4 {[%emt 0:00:16]} 6. Nxc6 {[%emt 0:00:13]} bxc6 {[%emt 0:00:07]} 7. Bd3 {[%emt 0:00:09]} d5 {[%emt 0:00:13]} 8. exd5 {[%emt 0:00:10]} cxd5 {[%emt 0:00:06]} 9. O-O {[%emt 0:00:10]} O-O {[%emt 0:00:07]} 10. h3 {[%emt 0:01:58]} c6 {[%emt 0:02:25]} 11. Qf3 {[%emt 0:00:08]} Re8 {[%emt 0:00:27]} 12. a3 {[%emt 0:00:34]} Bd6 {[%emt 0:01:59]} 13. Bf4 {[%emt 0:01:09]} Be6 {[%emt 0:04:19]} 14. Bxd6 {[%emt 0:09:04]} Qxd6 {[%emt 0:00:29]} 15. Rfe1 {[%emt 0:04:17]} c5 {[%emt 0:02:02]} 16. b3 {[%emt 0:05:58]} h6 {[%emt 0:05:42]} 17. Rad1 {[%emt 0:03:45]} Qb6 {[%emt 0:07:23]} 18. a4 {[%emt 0:13:35]} Qa5 {[%emt 0:11:12]} 19. Nb5 {[%emt 0:08:53]} Rad8 {[%emt 0:17:57]} 20. Qg3 {[%emt 0:05:49]} Bd7 {[%emt 0:15:31]} 21. c3 {[%emt 0:08:00]} Bxb5 {[%emt 0:02:40]} 22. Bxb5 {[%emt 0:00:29]} Rxe1+ {[%emt 0:01:09]} 23. Rxe1 {[%emt 0:00:09]} Ne4 {[%emt 0:00:29]} 24. Qh4 {[%emt 0:09:41]} Nxc3 {[%emt 0:02:15]} 25. Bd3 {[%emt 0:01:51]} Ne4 {[%emt 0:01:04]} 26. Rd1 {[%emt 0:03:26]} Nf6 {[%emt 0:00:13]} 27. Qf4 {[%emt 0:01:30]} Re8 {[%emt 0:01:08]} 28. Qd6 $19 {[%emt 0:02:07]} Qb6 {[%emt 0:02:20]} 29. Qg3 {[%emt 0:01:27]} Qb8 {[%emt 0:02:21]} 30. Qf3 {[%emt 0:01:02]} Qb4 {[%emt 0:00:14]} 31. Kh2 {[%emt 0:02:13]} Qb8+ {[%emt 0:04:00]} 32. Kg1 {[%emt 0:00:23]} Kf8 {[%emt 0:00:56]} 33. Bb5 {[%emt 0:00:46]} Re6 {[%emt 0:00:35]} 34. Rc1 {[%emt 0:02:24]} Qd6 {[%emt 0:00:34]} 35. Qg3 {[%emt 0:03:03]} Qxg3 {[%emt 0:02:57]} 36. fxg3 {[%emt 0:00:06]} a6 {[%emt 0:00:53]} 37. Bd3 {[%emt 0:00:16]} Rc6 {[%emt 0:00:18]} 38. Kf2 {[%emt 0:00:23]} a5 {[%emt 0:02:06]} 39. Kf3 {[%emt 0:00:59]} Ke7 {[%emt 0:00:26]} 40. g4 {[%emt 0:00:30]} Kd6 {[%emt 0:00:24]} 41. h4 {[%emt 0:00:22]} Rb6 {[%emt 0:00:53]} 42. Bb5 {[%emt 0:00:43]} Ne4 {[%emt 0:00:13]} 43. Ke3 {[%emt 0:00:28]} Nc3 {[%emt 0:01:08]} 44. Rf1 {[%emt 0:02:11]} f6 {[%emt 0:00:19]} 45. g5 {[%emt 0:00:21]} fxg5 {[%emt 0:00:53]} 46. hxg5 {[%emt 0:00:14]} hxg5 {[%emt 0:02:12]} 47. Rf8 {[%emt 0:03:47]} Nxb5 {[%emt 0:00:24]} 48. Rd8+ {[%emt 0:02:40]} Kc7 {[%emt 0:02:36]} 49. Rxd5 {[%emt 0:00:09]} Kc6 {[%emt 0:00:16]} 50. Rxg5 {[%emt 0:00:15]} Nd6 {[%emt 0:00:05]} 51. Ke2 {[%emt 0:01:01]} Rb7 {[%emt 0:01:23]} 52. Rg3 {[%emt 0:00:11]} Nf5 {[%emt 0:00:15]} 53. Rg6+ {[%emt 0:00:35]} Kd5 {[%emt 0:00:24]} 54. g4 {[%emt 0:00:26]} Nd4+ {[%emt 0:00:08]} 55. Kd2 {[%emt 0:00:55]} Nxb3+ {[%emt 0:00:09]} 56. Kc3 {[%emt 0:00:05]} Nd4 {[%emt 0:00:06]} 57. Rg5+ {[%emt 0:00:43]} Kd6 {[%emt 0:00:08]} 58. Rg6+ {[%emt 0:00:05]} Ne6 {[%emt 0:00:04] Kd4 Ke5+} 0-1

[Event "Velammal-AICF Women GM 2019"]
[Site "Chennai"]
[Date "2019.02.03"]
[Round "10"]
[White "Osmak, Iulija"]
[Black "Franco Valencia, Angela"]
[Result "0-1"]
[ECO "A80"]
[WhiteElo "2394"]
[BlackElo "2107"]
[Annotator "NA"]
[PlyCount "86"]
[EventDate "2019.01.28"]
[EventType "swiss"]
[EventCountry "IND"]
[SourceTitle "playchess.com"]
[Source "ChessBase"]
[SourceQuality "1"]
[TimeControl "5400+30"]

{[%evp 11,84,18,14,4,14,23,56,75,32767,120,122,134,186,177,202,185,205,32767,207,172,157,0,196,76,73,50,74,32767,32767,-175,-12,-24,0,-8,0,-48,0,-8,-7,0,32767,0,0,32767,-3,32767,58,28,36,32767,32767,32767,32767,32767,32767,32767,32767,32767,32767,32767,32767,32767,32767,32767,32767,32767,32767,32767,32767,32767,32767,32767,32767,32767,-29993]} 1. d4 {[%emt 0:01:05]} f5 {[%emt 0:00:00]} 2. Bf4 {[%emt 0:00:47]} Nf6 {[%emt 0:00:00]} 3. e3 {[%emt 0:00:57]} g6 {[%emt 0:00:25]} 4. Nf3 {[%emt 0:02:14]} Bg7 {[%emt 0:00:05]} 5. h4 {[%emt 0:00:32]} e6 {[%emt 0:04:53]} 6. Nc3 {[%emt 0:05:43]} d6 {[%emt 0:01:21]} 7. Bd3 {[%emt 0:01:18]} Nc6 {[%emt 0:00:57]} 8. e4 {[%emt 0:08:58]} Nh5 {[%emt 0:13:04]} 9. Bg5 {[%emt 0:02:41]} Bf6 {[%emt 0:00:59]} (9... Qd7 $14) 10. exf5 {[%emt 0:10:05]} exf5 {[%emt 0:02:24]} 11. Qd2 {[%emt 0:01:39]} O-O {[%emt 0:05:43]} 12. O-O-O {[%emt 0:02:22]} Nb4 {[%emt 0:03:23]} 13. Bc4+ {[%emt 0:04:51]} d5 {[%emt 0:00:29] [#]} 14. Be2 $1 {[%emt 0:01:09]} f4 $1 {[%emt 0:01:43]} 15. Bh6 {[%emt 0:18:38]} (15. a3 $18 {has better winning chances.} Nc6 16. Ne5) 15... Bg7 {[%emt 0:02:39]} 16. Bg5 {[%emt 0:03:50]} (16. Bxg7 $16 Nxg7 17. h5 gxh5 18. Ne5) 16... Bf6 {[%emt 0:01:56]} 17. Bxf4 {[%emt 0:03:11]} Nxf4 {[%emt 0:02:00]} 18. Qxf4 {[%emt 0:00:04]} c5 $1 {[%emt 0:00:46]} 19. Qd2 {[%emt 0:03:09]} Bf5 {[%emt 0:01:34]} 20. Bd3 $2 {[%emt 0:05:24]} (20. dxc5 $11 Bxc2 21. Nxd5 Bxd1 22. Nxf6+ Rxf6 23. Rxd1 Qxd2+ 24. Kxd2) 20... Bxd3 $2 {[%emt 0:15:04]} (20... cxd4 $19 21. Ne2 Nxa2+ 22. Kb1 {[#]} Nc3+ $1 {[%mdl 512]} 23. bxc3 Qb6+ 24. Ka2 Qa5+ 25. Kb3 dxc3 26. Nxc3 Qb6+ 27. Ka2 Bd7) 21. cxd3 {[%emt 0:00:12]} cxd4 {[%emt 0:00:04]} 22. Ne2 $1 {[%emt 0:01:18]} Nxa2+ {[%emt 0:02:23]} 23. Kb1 {[%emt 0:00:04]} Nc3+ $1 {[%emt 0:00:08]} 24. bxc3 {[%emt 0:00:59]} dxc3 {[%emt 0:00:01]} 25. Qa2 $1 {[%emt 0:09:47]} Qb6+ {[%emt 0:03:28]} 26. Kc1 {[%emt 0:00:06]} Qxf2 {[%emt 0:02:50]} 27. Nxc3 {[%emt 0:00:30]} Qe3+ $1 {[%emt 0:01:43]} 28. Qd2 {[%emt 0:00:04]} Qb6 {[%emt 0:00:08]} ({Better is} 28... Qe7 $11 29. d4 Rac8) 29. d4 {[%emt 0:00:16]} Rac8 {[%emt 0:00:20]} 30. Qb2 {[%emt 0:01:54]} Qa5 {[%emt 0:00:13]} 31. Rd3 {[%emt 0:00:27]} b5 {[%emt 0:02:58]} 32. Kb1 {[%emt 0:04:27]} Rc4 {[%emt 0:00:43]} 33. Nxd5 {[%emt 0:01:02]} Bg7 {[%emt 0:00:42]} 34. Ra3 {[%emt 0:01:58]} Ra4 {[%emt 0:01:51]} 35. Rxa4 {[%emt 0:00:51]} bxa4 {[%emt 0:00:03]} 36. Qa2 {[%emt 0:00:06]} Rb8+ {[%emt 0:00:23]} 37. Ka1 {[%emt 0:00:06]} Rb3 {[%emt 0:00:09]} 38. Rc1 {[%emt 0:02:15]} Qxd5 {[%emt 0:01:05]} 39. Rc8+ {[%emt 0:01:00]} Bf8 {[%emt 0:00:06]} 40. Qxa4 {[%emt 0:00:18]} Kg7 {[%emt 0:03:39]} 41. Qxa7+ {[%emt 0:01:03]} Kh6 {[%emt 0:00:06]} 42. Rxf8 {[%emt 0:02:07]} Qc4 {[%emt 0:00:32]} 43. Qc5 {[%emt 0:01:30]} Qa4+ {[%emt 0:00:05]} 0-1

[Event "Velammal-AICF Women GM 2019"]
[Site "Chennai"]
[Date "2019.02.03"]
[Round "10"]
[White "Nakhbayeva, Guliskhan"]
[Black "Varshini, V."]
[Result "1/2-1/2"]
[ECO "D35"]
[WhiteElo "2336"]
[BlackElo "2171"]
[Annotator "NA"]
[PlyCount "78"]
[EventDate "2019.01.28"]
[EventType "swiss"]
[EventCountry "IND"]
[SourceTitle "playchess.com"]
[Source "ChessBase"]
[SourceQuality "1"]
[TimeControl "5400+30"]

{[%evp 16,78,22,14,18,16,21,11,9,32767,11,7,19,0,0,0,0,-25,-28,-21,-5,-22,-6,-29,-14,-19,-31,-25,-35,-29,-17,-59,-39,-51,-42,32767,-44,32767,32767,32767,32767,32767,32767,32767,32767,32767,32767,32767,32767,32767,32767,-98,-50,-110,0,-9,0,0,0,-14,32767,0,0,0,0]} 1. d4 {[%emt 0:00:28]} d5 {[%emt 0:00:00]} 2. c4 {[%emt 0:00:11]} e6 {[%emt 0:00:04]} 3. Nc3 {[%emt 0:00:04]} Nf6 {[%emt 0:00:04]} 4. cxd5 {[%emt 0:00:09]} exd5 {[%emt 0:00:05]} 5. Bg5 {[%emt 0:00:08]} Be7 {[%emt 0:00:14]} 6. Qc2 {[%emt 0:00:11]} c6 {[%emt 0:00:17]} 7. e3 {[%emt 0:00:13]} Nbd7 {[%emt 0:00:14]} 8. Bd3 {[%emt 0:00:06]} Nf8 {[%emt 0:01:03]} 9. Nf3 {[%emt 0:02:30]} Ne6 {[%emt 0:02:16]} 10. Bh4 {[%emt 0:00:17]} g6 {[%emt 0:02:40]} 11. h3 {[%emt 0:00:16]} O-O {[%emt 0:10:32]} 12. g4 {[%emt 0:01:56]} c5 {[%emt 0:04:43]} 13. dxc5 {[%emt 0:00:54]} Nxc5 {[%emt 0:05:01]} 14. O-O-O {[%emt 0:00:36]} Be6 {[%emt 0:02:40]} 15. Nd4 {[%emt 0:08:12]} Rc8 {[%emt 0:02:44]} 16. Bxf6 {[%emt 0:05:10]} Bxf6 {[%emt 0:01:44]} 17. Kb1 {[%emt 0:00:05]} Bd7 {[%emt 0:16:56]} 18. Qd2 {[%emt 0:03:29]} ({But not} 18. Nxd5 Bxd4 19. exd4 Ba4 $17 {[%mdl 64] Skewer}) 18... Na4 {[%emt 0:11:30]} 19. Nxa4 {[%emt 0:07:47]} Bxa4 {[%emt 0:01:44]} 20. Bc2 {[%emt 0:00:56]} Bxc2+ {[%emt 0:02:04]} 21. Nxc2 {[%emt 0:00:01]} Qb6 {[%emt 0:00:41]} 22. Qb4 {[%emt 0:09:56]} Qe6 {[%emt 0:02:33]} 23. Qb3 {[%emt 0:07:54]} Rfd8 {[%emt 0:07:38]} 24. f3 {[%emt 0:06:27]} Rc4 {[%emt 0:12:24]} 25. Rd2 {[%emt 0:08:23]} Rd6 {[%emt 0:01:47]} 26. Nd4 {[%emt 0:11:57]} Bxd4 {[%emt 0:03:05]} 27. Rxd4 {[%emt 0:01:31]} Rxd4 {[%emt 0:01:22]} 28. exd4 {[%emt 0:00:01]} Qe2 {[%emt 0:02:51]} 29. Qxb7 {[%emt 0:03:16]} Qxf3 {[%emt 0:02:19]} 30. Rc1 {[%emt 0:02:26]} Qe4+ {[%emt 0:01:29]} 31. Ka1 {[%emt 0:00:10]} Rb6 {[%emt 0:01:00]} 32. Qc8+ {[%emt 0:05:24]} Kg7 {[%emt 0:00:06]} 33. Qc3 {[%emt 0:01:06]} Re6 {[%emt 0:00:46]} 34. a4 {[%emt 0:01:15]} (34. a3 $1 $15) 34... Qe2 {[%emt 0:01:02]} (34... Qf4 $17 35. Kb1 Re3) 35. Ka2 {[%emt 0:04:44]} Ra6 {[%emt 0:01:09]} 36. Ka3 {[%emt 0:03:31]} Re6 {[%emt 0:00:29]} 37. Ka2 {[%emt 0:01:23]} Ra6 {[%emt 0:00:19]} 38. Qb4 {[%emt 0:00:45]} Rb6 {[%emt 0:00:16]} 39. Qc3 {[%emt 0:01:44]} Ra6 $11 1/2-1/2